[Event "Germany Countries-chT Youth 2022"]
[Site "Wiesbaden"]
[Date "2022.10.03"]
[Round "6"]
[White "Yue, Qizhou"]
[Black "Nechitailo, Nikita"]
[Result "0-1"]
[ECO "B39"]
[WhiteElo "1711"]
[BlackElo "1651"]
[Annotator "NA RC COMBH"]
[PlyCount "56"]
[EventDate "2022.09.28"]
[EventType "team-tourn"]
[EventRounds "7"]
[EventCountry "GER"]
[SourceTitle "playchess.com"]
[Source "ChessBase"]
[SourceQuality "1"]
[TimeControl "40/5400+30:1800+30"]

1. e4 {[%emt 0:00:02]} c5 {[%emt 0:00:07]} 2. Nf3 {[%emt 0:00:05]} Nc6 {[%emt 0:00:04]} 3. d4 {[%emt 0:00:05]} cxd4 {[%emt 0:00:04]} 4. Nxd4 {[%emt 0:00:07]} g6 {[%emt 0:00:03]} 5. c4 {[%emt 0:00:08]} Bg7 {[%emt 0:00:05]} 6. Be3 {[%emt 0:00:09]} Nf6 {[%emt 0:00:06]} 7. Nc3 {[%emt 0:00:06]} Ng4 {[%emt 0:00:06]} 8. Qxg4 {[%emt 0:00:08]} Nxd4 {[%emt 0:00:07]} 9. Qd1 {[%emt 0:00:07]} Ne6 {[%emt 0:00:29]} 10. Qd2 {[%emt 0:00:40]} O-O {[%emt 0:01:05]} 11. Be2 {[%emt 0:01:55]} d6 {[%emt 0:00:23]} 12. O-O {[%emt 0:00:49]} a5 {[%emt 0:00:10]} 13. Rac1 {[%emt 0:01:32]} Nc5 {[%emt 0:00:14]} 14. f3 {[%emt 0:01:22]} Be6 {[%emt 0:03:36]} 15. b3 {[%emt 0:01:58]} Qb6 {[%emt 0:02:11]} 16. Nd5 {[%emt 0:03:54]} Bxd5 {[%emt 0:00:11]} 17. exd5 {[%emt 0:00:46]} Qb4 {[%emt 0:00:53]} 18. Qc2 {[%emt 0:07:38]} a4 {[%emt 0:02:00]} 19. bxa4 {[%emt 0:06:14]} Qxa4 {[%emt 0:04:17]} 20. Qb1 {[%emt 0:15:34]} Qxa2 {[%emt 0:01:32]} 21. Rc2 {[%emt 0:00:47]} Qa3 {[%emt 0:01:29]} 22. Bxc5 {[%emt 0:02:23]} Qxc5+ {[%emt 0:00:07]} 23. Kh1 {[%emt 0:00:08]} b6 {[%emt 0:06:05]} 24. f4 Ra5 {[%emt 0:04:36]} 25. Qb3 {[%emt 0:05:33]} Rfa8 {[%emt 0:01:16]} 26. g3 {[%emt 0:05:36]} Ra3 {[%emt 0:00:29]} 27. Qb5 {[%emt 0:02:40]} Qe3 {[%emt 0:00:54]} 28. Rf3 {[%emt 0:02:37]} Qe4 0-1

[Event "Germany Countries-chT Youth 2022"]
[Site "Wiesbaden"]
[Date "2022.10.03"]
[Round "6"]
[White "Keymer, Cecilia"]
[Black "Zoellner, Bente"]
[Result "0-1"]
[ECO "D31"]
[WhiteElo "1696"]
[BlackElo "1756"]
[Annotator "NA RC COMBH"]
[PlyCount "78"]
[EventDate "2022.09.28"]
[EventType "team-tourn"]
[EventRounds "7"]
[EventCountry "GER"]
[SourceTitle "playchess.com"]
[Source "ChessBase"]
[SourceQuality "1"]
[TimeControl "40/5400+30:1800+30"]

1. d4 {[%emt 0:00:02]} d5 {[%emt 0:00:08]} 2. c4 {[%emt 0:00:06]} e6 {[%emt 0:00:09]} 3. Nc3 {[%emt 0:00:16]} a6 {[%emt 0:00:14]} 4. cxd5 {[%emt 0:02:47]} exd5 {[%emt 0:00:17]} 5. Nf3 {[%emt 0:01:49]} c6 {[%emt 0:00:24]} 6. Qc2 {[%emt 0:04:14]} Bd6 {[%emt 0:02:55]} 7. Bg5 {[%emt 0:03:17]} Be7 {[%emt 0:02:55]} 8. Bf4 {[%emt 0:04:13]} Bd6 {[%emt 0:01:47]} 9. Bxd6 {[%emt 0:04:25]} Qxd6 {[%emt 0:00:10]} 10. e3 {[%emt 0:00:59]} Ne7 {[%emt 0:00:58]} 11. Bd3 {[%emt 0:01:15]} g6 {[%emt 0:01:20]} 12. O-O {[%emt 0:07:00]} Bf5 {[%emt 0:01:23]} 13. e4 {[%emt 0:11:20]} dxe4 {[%emt 0:04:03]} 14. Bxe4 {[%emt 0:02:48]} Nd7 {[%emt 0:02:40]} 15. Rad1 {[%emt 0:05:29]} Nf6 {[%emt 0:03:10]} 16. Bxf5 {[%emt 0:05:08]} Nxf5 {[%emt 0:01:26]} 17. Rfe1+ {[%emt 0:01:46]} Kf8 {[%emt 0:01:03]} 18. Qb3 {[%emt 0:03:45]} Kg7 {[%emt 0:04:24]} 19. Ne5 {[%emt 0:05:32]} Qc7 {[%emt 0:04:42]} 20. Qc4 {[%emt 0:09:28]} Nd6 {[%emt 0:04:39]} 21. Qc5 {[%emt 0:02:07]} Rac8 {[%emt 0:02:12]} 22. f3 {[%emt 0:03:20]} b6 {[%emt 0:01:38]} 23. Qb4 {[%emt 0:01:00]} a5 {[%emt 0:02:19]} 24. Qb3 {[%emt 0:01:04]} b5 {[%emt 0:05:52]} 25. Rc1 {[%emt 0:03:19]} Qa7 {[%emt 0:02:41]} 26. Ne2 {[%emt 0:01:14]} c5 {[%emt 0:02:03]} 27. Qd3 {[%emt 0:01:43]} Nf5 {[%emt 0:03:43]} 28. Red1 {[%emt 0:05:09]} Rhd8 {[%emt 0:06:45]} 29. Qxb5 {[%emt 0:01:09]} Rd5 {[%emt 0:08:32]} 30. Qd3 {[%emt 0:04:39]} Rxe5 {[%emt 0:06:34]} 31. dxe5 {[%emt 0:04:33]} c4+ {[%emt 0:00:31]} 32. Kh1 {[%emt 0:00:39]} cxd3 {[%emt 0:00:42]} 33. exf6+ {[%emt 0:00:22]} Kxf6 {[%emt 0:00:24]} 34. Rxc8 {[%emt 0:00:25]} dxe2 {[%emt 0:00:32]} 35. Re1 {[%emt 0:00:27]} Qf2 {[%emt 0:00:59]} 36. Rcc1 {[%emt 0:00:22]} Ne3 {[%emt 0:01:04]} 37. Rg1 {[%emt 0:00:35]} h5 {[%emt 0:00:38]} 38. Rc6+ {[%emt 0:01:05]} Kg7 {[%emt 0:00:22]} 39. Rcc1 {[%emt 0:00:05]} Nf1 {[%emt 0:00:40]} 0-1

[Event "Germany Countries-chT Youth 2022"]
[Site "Wiesbaden"]
[Date "2022.10.03"]
[Round "6"]
[White "Buchholz, Maja"]
[Black "Prinzen, Siri Marleen"]
[Result "1/2-1/2"]
[ECO "A20"]
[WhiteElo "1695"]
[BlackElo "1733"]
[Annotator "NA RC COMBH"]
[PlyCount "84"]
[EventDate "2022.09.28"]
[EventType "team-tourn"]
[EventRounds "7"]
[EventCountry "GER"]
[SourceTitle "playchess.com"]
[Source "ChessBase"]
[SourceQuality "1"]
[TimeControl "40/5400+30:1800+30"]

1. c4 {[%emt 0:00:02]} e5 {[%emt 0:00:04]} 2. g3 {[%emt 0:00:05]} f5 {[%emt 0:00:22]} 3. Bg2 {[%emt 0:00:07]} Nf6 {[%emt 0:00:12]} 4. Nc3 {[%emt 0:00:07]} g6 {[%emt 0:00:21]} 5. e3 {[%emt 0:00:27]} Bg7 {[%emt 0:00:45]} 6. Nge2 {[%emt 0:00:52]} d6 {[%emt 0:01:05]} 7. Rb1 {[%emt 0:02:58]} c6 {[%emt 0:05:02]} 8. d4 {[%emt 0:02:50]} e4 {[%emt 0:02:34]} 9. d5 {[%emt 0:02:39]} c5 {[%emt 0:02:15]} 10. Nf4 {[%emt 0:02:24]} Qe7 {[%emt 0:02:27]} 11. Qa4+ {[%emt 0:09:18]} Kf7 {[%emt 0:04:59]} 12. h4 {[%emt 0:05:23]} Ng4 {[%emt 0:03:45]} 13. Bd2 {[%emt 0:02:09]} Ne5 {[%emt 0:02:32]} 14. Nce2 {[%emt 0:04:36]} Bd7 {[%emt 0:02:40]} 15. Qb3 {[%emt 0:00:46]} b6 {[%emt 0:01:02]} 16. a3 {[%emt 0:01:56]} Na6 {[%emt 0:02:37]} 17. Ng1 {[%emt 0:03:33]} h6 {[%emt 0:03:18]} 18. Bc3 {[%emt 0:05:27]} Nc7 {[%emt 0:02:57]} 19. h5 {[%emt 0:02:21]} gxh5 {[%emt 0:04:10]} 20. a4 {[%emt 0:05:30]} Rab8 {[%emt 0:02:31]} 21. Bf1 {[%emt 0:03:18]} Bf6 {[%emt 0:11:11]} 22. Be2 {[%emt 0:03:22]} Ng4 {[%emt 0:04:32]} 23. Nxh5 {[%emt 0:00:37]} Bxc3+ {[%emt 0:00:50]} 24. Qxc3 {[%emt 0:01:47]} Ne5 {[%emt 0:02:31]} 25. b3 {[%emt 0:00:39]} Ne8 {[%emt 0:02:03]} 26. Nh3 {[%emt 0:03:43]} Nf6 {[%emt 0:02:28]} 27. N3f4 {[%emt 0:01:45]} Nh7 {[%emt 0:04:36]} 28. Ng2 {[%emt 0:03:28]} Ng5 {[%emt 0:02:35]} 29. Nhf4 {[%emt 0:00:38]} Qf6 {[%emt 0:01:53]} 30. Kd1 {[%emt 0:01:54]} Ke7 {[%emt 0:03:59]} 31. Kc2 {[%emt 0:02:54]} Be8 {[%emt 0:03:04]} 32. Bh5 {[%emt 0:02:52]} Bf7 {[%emt 0:03:02]} 33. Nh4 {[%emt 0:05:00]} a5 {[%emt 0:04:30]} 34. Rbd1 {[%emt 0:02:49]} Rbg8 {[%emt 0:02:23]} 35. Qd2 {[%emt 0:05:26]} Rh7 {[%emt 0:04:26]} 36. Qe2 {[%emt 0:03:03]} Rhh8 {[%emt 0:04:00]} 37. Bxf7 {[%emt 0:02:13]} Qxf7 {[%emt 0:00:46]} 38. Qh5 {[%emt 0:00:55]} Qf6 {[%emt 0:01:35]} 39. Rdf1 {[%emt 0:07:07]} Rh7 {[%emt 0:01:30]} 40. Rd1 {[%emt 0:01:26]} Rhh8 {[%emt 0:00:09]} 41. Kb1 {[%emt 0:31:28]} Rh7 {[%emt 0:32:00]} 42. Kc2 {[%emt 0:00:00]} Rhh8 {[%emt 0:00:00]} 1/2-1/2

[Event "Germany Countries-chT Youth 2022"]
[Site "Wiesbaden"]
[Date "2022.10.03"]
[Round "6"]
[White "Limmer, Marco"]
[Black "Bezsonna, Polina"]
[Result "1-0"]
[ECO "A16"]
[WhiteElo "1691"]
[BlackElo "1649"]
[Annotator "NA RC COMBH"]
[PlyCount "120"]
[EventDate "2022.09.28"]
[EventType "team-tourn"]
[EventRounds "7"]
[EventCountry "GER"]
[SourceTitle "playchess.com"]
[Source "ChessBase"]
[SourceQuality "1"]
[TimeControl "40/5400+30:1800+30"]

1. c4 {[%emt 0:00:01]} Nf6 {[%emt 0:00:17]} 2. Nc3 {[%emt 0:00:41]} c5 {[%emt 0:00:46]} 3. e4 {[%emt 0:00:45]} Nc6 {[%emt 0:00:49]} 4. g3 {[%emt 0:00:40]} g6 {[%emt 0:00:24]} 5. Bg2 {[%emt 0:00:34]} Bg7 {[%emt 0:00:29]} 6. Nge2 {[%emt 0:00:26]} d6 {[%emt 0:02:58]} 7. O-O {[%emt 0:02:26]} O-O {[%emt 0:08:51]} 8. d3 {[%emt 0:01:52]} Nd4 {[%emt 0:03:19]} 9. h3 {[%emt 0:12:22]} Rb8 {[%emt 0:04:22]} 10. Be3 {[%emt 0:02:25]} Ne8 {[%emt 0:05:49]} 11. Rb1 {[%emt 0:08:23]} Nc7 {[%emt 0:08:51]} 12. b4 {[%emt 0:05:42]} Nxe2+ {[%emt 0:00:33]} 13. Nxe2 {[%emt 0:00:56]} Na6 {[%emt 0:10:10]} 14. a3 {[%emt 0:08:02]} b6 {[%emt 0:04:49]} 15. Qd2 {[%emt 0:04:45]} Bb7 {[%emt 0:11:09]} 16. Bh6 {[%emt 0:04:20]} e6 {[%emt 0:03:27]} 17. Bxg7 {[%emt 0:01:43]} Kxg7 {[%emt 0:00:22]} 18. d4 {[%emt 0:06:47]} Nc7 {[%emt 0:09:19]} 19. Rfd1 {[%emt 0:02:51]} cxb4 {[%emt 0:00:54]} 20. axb4 {[%emt 0:02:19]} f5 {[%emt 0:08:21]} 21. d5 {[%emt 0:07:35]} e5 {[%emt 0:05:46]} 22. Qc3 {[%emt 0:03:39]} fxe4 {[%emt 0:00:58]} 23. Bxe4 {[%emt 0:00:25]} Qf6 {[%emt 0:01:01]} 24. f3 {[%emt 0:01:05]} Ba6 {[%emt 0:03:52]} 25. Ra1 {[%emt 0:02:03]} Ra8 {[%emt 0:00:32]} 26. Rd2 {[%emt 0:01:49]} Bc8 {[%emt 0:00:51]} 27. c5 {[%emt 0:01:54]} bxc5 {[%emt 0:01:37]} 28. bxc5 {[%emt 0:00:55]} Bf5 {[%emt 0:01:51]} 29. Bxf5 {[%emt 0:03:09]} gxf5 {[%emt 0:00:22]} 30. cxd6 {[%emt 0:00:34]} Qxd6 {[%emt 0:00:30]} 31. f4 {[%emt 0:01:09]} Nxd5 {[%emt 0:01:53]} 32. Qxe5+ {[%emt 0:01:35]} Qxe5 {[%emt 0:00:09]} 33. fxe5 {[%emt 0:00:06]} Nb6 {[%emt 0:00:25]} 34. Nf4 {[%emt 0:01:15]} Rfe8 {[%emt 0:00:44]} 35. e6 {[%emt 0:00:35]} Kf6 {[%emt 0:00:53]} 36. Rda2 {[%emt 0:01:00]} Re7 {[%emt 0:00:28]} 37. Ra6 {[%emt 0:00:47]} Rb7 {[%emt 0:00:32]} 38. Rxb6 {[%emt 0:01:43]} Rxb6 {[%emt 0:00:27]} 39. Nd5+ {[%emt 0:00:16]} Kxe6 {[%emt 0:00:25]} 40. Nxb6 {[%emt 0:00:33]} Rb8 {[%emt 0:00:39]} 41. Nc4 {[%emt 0:30:53]} Rb7 {[%emt 0:30:33]} 42. Re1+ {[%emt 0:00:52]} Kd5 {[%emt 0:00:29]} 43. Ne3+ {[%emt 0:00:25]} Ke4 {[%emt 0:00:33]} 44. Ng4+ {[%emt 0:01:22]} Kd4 {[%emt 0:00:20]} 45. Nh6 {[%emt 0:00:47]} Rb5 {[%emt 0:00:31]} 46. Rf1 {[%emt 0:00:30]} Kc3 {[%emt 0:00:00]} 47. Nxf5 {[%emt 0:00:00]} a5 {[%emt 0:00:00]} 48. Rf3+ {[%emt 0:00:00]} Kb2 {[%emt 0:00:00]} 49. Nd4 {[%emt 0:00:00]} Rd5 {[%emt 0:00:00]} 50. Rb3+ {[%emt 0:00:00]} Ka2 {[%emt 0:00:00]} 51. Rb5 {[%emt 0:00:00]} Rxd4 {[%emt 0:00:00]} 52. Rxa5+ {[%emt 0:00:00]} Kb3 {[%emt 0:00:00]} 53. Ra7 {[%emt 0:00:00]} h5 {[%emt 0:00:00]} 54. h4 {[%emt 0:00:00]} Rd5 {[%emt 0:00:00]} 55. Rc7 {[%emt 0:00:00]} Rf5 {[%emt 0:00:00]} 56. Kg2 {[%emt 0:00:00]} Kb4 {[%emt 0:00:00]} 57. Kh3 {[%emt 0:00:00]} Kb5 {[%emt 0:00:00]} 58. Rg7 {[%emt 0:00:00]} Kc6 {[%emt 0:00:00]} 59. Rg5 {[%emt 0:00:00]} Rxg5 60. hxg5 {[%emt 0:00:00]} Kd5 1-0

[Event "Germany Countries-chT Youth 2022"]
[Site "Wiesbaden"]
[Date "2022.10.03"]
[Round "6"]
[White "Neininger, Sarah"]
[Black "Schwarzfischer, Julia"]
[Result "1/2-1/2"]
[ECO "C55"]
[WhiteElo "1589"]
[BlackElo "1300"]
[Annotator "NA RC COMBH"]
[PlyCount "127"]
[EventDate "2022.09.28"]
[EventType "team-tourn"]
[EventRounds "7"]
[EventCountry "GER"]
[SourceTitle "playchess.com"]
[Source "ChessBase"]
[SourceQuality "1"]
[TimeControl "40/5400+30:1800+30"]

1. e4 {[%emt 0:00:03]} e5 {[%emt 0:00:10]} 2. Nf3 {[%emt 0:00:06]} Nc6 {[%emt 0:00:32]} 3. d4 {[%emt 0:00:20]} exd4 {[%emt 0:00:15]} 4. Bc4 {[%emt 0:00:09]} Nf6 {[%emt 0:00:17]} 5. e5 {[%emt 0:00:31]} d5 {[%emt 0:00:29]} 6. Bb5 {[%emt 0:00:41]} Ne4 {[%emt 0:00:31]} 7. Nxd4 {[%emt 0:00:42]} Bd7 {[%emt 0:01:51]} 8. Bxc6 {[%emt 0:00:24]} bxc6 {[%emt 0:01:05]} 9. O-O {[%emt 0:00:21]} Be7 {[%emt 0:03:01]} 10. Nd2 {[%emt 0:04:08]} Nc5 {[%emt 0:05:28]} 11. f4 {[%emt 0:03:27]} O-O {[%emt 0:06:59]} 12. Kh1 {[%emt 0:03:39]} f6 {[%emt 0:05:42]} 13. N2f3 {[%emt 0:11:17]} a5 {[%emt 0:11:23]} 14. f5 {[%emt 0:07:15]} fxe5 {[%emt 0:03:10]} 15. Nxe5 {[%emt 0:00:22]} Bd6 {[%emt 0:01:14]} 16. Ndxc6 {[%emt 0:15:01]} Bxc6 {[%emt 0:04:43]} 17. Nxc6 {[%emt 0:00:07]} Qh4 {[%emt 0:01:00]} 18. Qxd5+ {[%emt 0:04:33]} Kh8 {[%emt 0:00:28]} 19. Ne5 {[%emt 0:00:51]} Rae8 {[%emt 0:02:35]} 20. Bf4 {[%emt 0:08:58]} Rd8 {[%emt 0:30:52]} 21. Nf7+ {[%emt 0:11:45]} Rxf7 {[%emt 0:00:11]} 22. Bxd6 {[%emt 0:00:11]} Rfd7 {[%emt 0:00:30]} 23. Qxc5 {[%emt 0:00:17]} Rxd6 {[%emt 0:00:32]} 24. Qxc7 {[%emt 0:06:40]} Rd2 {[%emt 0:02:41]} 25. h3 {[%emt 0:04:15]} Qe4 {[%emt 0:01:57]} 26. Qg3 {[%emt 0:01:58]} Rxc2 {[%emt 0:00:27]} 27. Rae1 {[%emt 0:01:24]} Qb7 {[%emt 0:01:31]} 28. Rf2 {[%emt 0:02:16]} Rxb2 {[%emt 0:02:41]} 29. Qe5 {[%emt 0:01:02]} Rb1 {[%emt 0:00:43]} 30. Qxa5 {[%emt 0:02:15]} Re8 {[%emt 0:02:06]} 31. Rff1 {[%emt 0:00:58]} Rbxe1 {[%emt 0:01:25]} 32. Rxe1 {[%emt 0:00:15]} Ra8 {[%emt 0:00:28]} 33. Qe5 {[%emt 0:01:26]} h6 {[%emt 0:01:13]} 34. f6 {[%emt 0:01:33]} Rxa2 {[%emt 0:00:58]} 35. fxg7+ {[%emt 0:00:24]} Kh7 {[%emt 0:02:51]} 36. g8=Q+ {[%emt 0:02:52]} Kxg8 {[%emt 0:00:05]} 37. Qe6+ {[%emt 0:00:11]} Qf7 {[%emt 0:00:08]} 38. Qg4+ {[%emt 0:00:41]} Kh7 {[%emt 0:00:47]} 39. Qe4+ {[%emt 0:01:42]} Kg7 {[%emt 0:00:26]} 40. Qe5+ {[%emt 0:00:31]} Kh7 {[%emt 0:00:14]} 41. Qe7 {[%emt 0:33:56]} Qg7 {[%emt 0:31:06]} 42. Qxg7+ {[%emt 0:01:08]} Kxg7 {[%emt 0:00:07]} 43. Re6 {[%emt 0:00:15]} h5 {[%emt 0:00:21]} 44. Kh2 {[%emt 0:00:45]} Rf2 {[%emt 0:00:12]} 45. Kg3 {[%emt 0:00:00]} Rd2 {[%emt 0:00:00]} 46. Kf3 {[%emt 0:00:00]} Rd3+ {[%emt 0:00:00]} 47. Kf4 {[%emt 0:00:00]} Rd2 {[%emt 0:00:00]} 48. Kg5 {[%emt 0:00:00]} Rxg2+ {[%emt 0:00:00]} 49. Kxh5 {[%emt 0:00:00]} Kf7 {[%emt 0:00:00]} 50. Rb6 {[%emt 0:00:00]} Rh2 {[%emt 0:00:00]} 51. h4 {[%emt 0:00:00]} Kg7 {[%emt 0:00:00]} 52. Rb4 {[%emt 0:00:00]} Kf6 {[%emt 0:00:00]} 53. Kh6 {[%emt 0:00:00]} Kf5 {[%emt 0:00:00]} 54. h5 {[%emt 0:00:00]} Rg2 {[%emt 0:00:00]} 55. Rb5+ {[%emt 0:00:00]} Kf6 {[%emt 0:00:00]} 56. Kh7 {[%emt 0:00:00]} Rg7+ {[%emt 0:00:00]} 57. Kh8 {[%emt 0:00:00]} Re7 {[%emt 0:00:00]} 58. Rb6+ {[%emt 0:00:00]} Kg5 {[%emt 0:00:00]} 59. h6 {[%emt 0:00:00]} Re8+ {[%emt 0:00:00]} 60. Kg7 {[%emt 0:00:00]} Re7+ {[%emt 0:00:00]} 61. Kg8 {[%emt 0:00:00]} Re8+ {[%emt 0:00:00]} 62. Kf7 {[%emt 0:00:00]} Ra8 {[%emt 0:00:00]} 63. h7 {[%emt 0:00:00]} Ra7+ {[%emt 0:00:00]} 64. Kg8 {[%emt 0:00:00]} 1/2-1/2

[Event "Germany Countries-chT Youth 2022"]
[Site "Wiesbaden"]
[Date "2022.10.03"]
[Round "6"]
[White "Ulrich, Helena Irene"]
[Black "Modali, Nikhilamrutha"]
[Result "1-0"]
[ECO "B47"]
[WhiteElo "1573"]
[BlackElo "1355"]
[Annotator "NA RC COMBH"]
[PlyCount "79"]
[EventDate "2022.09.28"]
[EventType "team-tourn"]
[EventRounds "7"]
[EventCountry "GER"]
[SourceTitle "playchess.com"]
[Source "ChessBase"]
[SourceQuality "1"]
[TimeControl "40/5400+30:1800+30"]

1. e4 {[%emt 0:00:01]} c5 {[%emt 0:00:10]} 2. Nf3 {[%emt 0:00:06]} e6 {[%emt 0:00:03]} 3. d4 {[%emt 0:00:04]} cxd4 {[%emt 0:00:04]} 4. Nxd4 {[%emt 0:00:03]} Nc6 {[%emt 0:00:05]} 5. Nc3 {[%emt 0:00:05]} Qc7 {[%emt 0:00:20]} 6. f4 {[%emt 0:00:34]} e5 {[%emt 0:09:53]} 7. Ndb5 {[%emt 0:09:05]} Qb8 {[%emt 0:24:44]} 8. Nd5 {[%emt 0:29:28]} Bd6 {[%emt 0:03:43]} 9. f5 {[%emt 0:10:08]} a6 {[%emt 0:18:05]} 10. Nxd6+ {[%emt 0:01:28]} Qxd6 {[%emt 0:00:26]} 11. Bg5 {[%emt 0:00:29]} Kf8 {[%emt 0:09:09]} 12. c3 {[%emt 0:05:56]} f6 {[%emt 0:07:57]} 13. Be3 {[%emt 0:02:36]} Nge7 {[%emt 0:03:27]} 14. b4 {[%emt 0:06:13]} Nxd5 {[%emt 0:01:04]} 15. Bc5 {[%emt 0:00:15]} Qxc5 {[%emt 0:01:50]} 16. bxc5 Nxc3 {[%emt 0:01:15]} 17. Qf3 {[%emt 0:05:51]} Nb5 {[%emt 0:00:54]} 18. O-O-O {[%emt 0:06:32]} Ncd4 {[%emt 0:02:43]} 19. Qh5 {[%emt 0:05:03]} d5 {[%emt 0:03:12]} 20. exd5 {[%emt 0:08:31]} Bxf5 {[%emt 0:00:34]} 21. Bxb5 {[%emt 0:01:09]} axb5 {[%emt 0:00:07]} 22. Rxd4 {[%emt 0:01:26]} Bg6 {[%emt 0:00:25]} 23. Qe2 {[%emt 0:01:01]} exd4 {[%emt 0:00:18]} 24. Re1 {[%emt 0:00:04]} Re8 {[%emt 0:00:22]} 25. Qd2 {[%emt 0:01:13]} d3 {[%emt 0:02:09]} 26. Rxe8+ {[%emt 0:02:22]} Kxe8 {[%emt 0:00:24]} 27. Qe1+ {[%emt 0:00:41]} Kd8 {[%emt 0:01:11]} 28. Qa5+ {[%emt 0:00:26]} Ke7 {[%emt 0:01:13]} 29. Qc7+ {[%emt 0:00:23]} Kf8 {[%emt 0:00:29]} 30. Qc8+ {[%emt 0:00:21]} Be8 {[%emt 0:00:05]} 31. d6 {[%emt 0:00:16]} Kf7 {[%emt 0:00:52]} 32. d7 {[%emt 0:00:25]} b4 {[%emt 0:02:23]} 33. d8=Q {[%emt 0:00:19]} g5 {[%emt 0:00:50]} 34. Qxb7+ {[%emt 0:00:26]} Kg6 {[%emt 0:00:09]} 35. Qbe7 {[%emt 0:00:14]} Rg8 {[%emt 0:00:23]} 36. Qxf6+ {[%emt 0:00:35]} Kh5 {[%emt 0:00:08]} 37. Qf3+ {[%emt 0:00:27]} g4 {[%emt 0:00:13]} 38. Qdd5+ {[%emt 0:00:33]} Kh6 {[%emt 0:00:09]} 39. Qf6+ {[%emt 0:00:07]} Bg6 {[%emt 0:00:28]} 40. Qdg5# 1-0

[Event "Germany Countries-chT Youth 2022"]
[Site "Wiesbaden"]
[Date "2022.10.03"]
[Round "6"]
[White "Skembris, Simon Max"]
[Black "Huppert, Anna"]
[Result "1-0"]
[ECO "C06"]
[WhiteElo "1540"]
[BlackElo "1417"]
[Annotator "NA RC COMBH"]
[PlyCount "79"]
[EventDate "2022.09.28"]
[EventType "team-tourn"]
[EventRounds "7"]
[EventCountry "GER"]
[SourceTitle "playchess.com"]
[Source "ChessBase"]
[SourceQuality "1"]
[TimeControl "40/5400+30:1800+30"]

1. e4 {[%emt 0:00:01]} e6 {[%emt 0:00:05]} 2. d4 {[%emt 0:00:07]} d5 {[%emt 0:00:05]} 3. Nd2 {[%emt 0:00:08]} Nf6 {[%emt 0:00:08]} 4. e5 {[%emt 0:00:04]} Nfd7 {[%emt 0:00:06]} 5. Bd3 {[%emt 0:00:07]} c5 {[%emt 0:00:06]} 6. c3 {[%emt 0:00:05]} Nc6 {[%emt 0:00:04]} 7. Ne2 {[%emt 0:00:13]} cxd4 {[%emt 0:00:08]} 8. cxd4 {[%emt 0:00:07]} f6 {[%emt 0:00:08]} 9. exf6 {[%emt 0:00:21]} Nxf6 {[%emt 0:00:14]} 10. Nf3 {[%emt 0:00:26]} Bd6 {[%emt 0:01:20]} 11. O-O {[%emt 0:00:25]} Qc7 {[%emt 0:01:17]} 12. g3 {[%emt 0:01:23]} e5 {[%emt 0:05:52]} 13. dxe5 {[%emt 0:02:55]} Nxe5 {[%emt 0:00:45]} 14. Nxe5 {[%emt 0:04:22]} Bxe5 {[%emt 0:00:22]} 15. Bf4 {[%emt 0:03:55]} O-O {[%emt 0:06:04]} 16. Rc1 {[%emt 0:03:45]} Qd6 {[%emt 0:04:33]} 17. Bxe5 {[%emt 0:04:25]} Qxe5 {[%emt 0:00:23]} 18. Qd2 {[%emt 0:02:25]} Ne4 {[%emt 0:09:23]} 19. Bxe4 {[%emt 0:08:12]} Qxe4 {[%emt 0:03:00]} 20. Nc3 {[%emt 0:02:14]} Qf3 {[%emt 0:06:14]} 21. Qxd5+ {[%emt 0:00:56]} Qxd5 {[%emt 0:04:47]} 22. Nxd5 {[%emt 0:00:20]} Bh3 {[%emt 0:00:42]} 23. Rfe1 {[%emt 0:01:25]} Rad8 {[%emt 0:00:38]} 24. Nf4 {[%emt 0:01:47]} Bg4 {[%emt 0:08:39]} 25. Rc7 {[%emt 0:08:00]} g5 {[%emt 0:03:57]} 26. Ree7 {[%emt 0:03:35]} Bf5 {[%emt 0:03:40]} 27. Rg7+ {[%emt 0:07:34]} Kh8 {[%emt 0:00:15]} 28. Rxg5 {[%emt 0:00:41]} Rd2 {[%emt 0:00:42]} 29. Rgg7 {[%emt 0:02:51]} a5 {[%emt 0:09:55]} 30. Rge7 {[%emt 0:06:53]} b5 {[%emt 0:06:26]} 31. Nh5 {[%emt 0:03:21]} Kg8 {[%emt 0:07:20]} 32. Rg7+ {[%emt 0:03:11]} Kh8 {[%emt 0:00:16]} 33. g4 {[%emt 0:06:43]} Be4 {[%emt 0:08:38]} 34. f3 {[%emt 0:06:57]} Rd1+ {[%emt 0:03:18]} 35. Kf2 {[%emt 0:02:37]} Rxf3+ {[%emt 0:00:34]} 36. Ke2 {[%emt 0:00:08]} Rd8 {[%emt 0:00:18]} 37. Rge7 {[%emt 0:01:07]} Ba8 {[%emt 0:01:50]} 38. Rxh7+ {[%emt 0:00:34]} Kg8 {[%emt 0:00:07]} 39. Rcg7+ {[%emt 0:00:07]} Kf8 {[%emt 0:00:25]} 40. Rh8# {[%emt 0:00:06]} 1-0

[Event "Germany Countries-chT Youth 2022"]
[Site "Wiesbaden"]
[Date "2022.10.03"]
[Round "6"]
[White "Henninger, Claire"]
[Black "Mueller, Sophie Charlotte"]
[Result "1-0"]
[ECO "B01"]
[WhiteElo "1526"]
[BlackElo "1435"]
[Annotator "NA RC COMBH"]
[PlyCount "67"]
[EventDate "2022.09.28"]
[EventType "team-tourn"]
[EventRounds "7"]
[EventCountry "GER"]
[SourceTitle "playchess.com"]
[Source "ChessBase"]
[SourceQuality "1"]
[TimeControl "40/5400+30:1800+30"]

1. e4 {[%emt 0:00:01]} d5 {[%emt 0:00:08]} 2. exd5 {[%emt 0:00:07]} Qxd5 {[%emt 0:00:07]} 3. Nc3 {[%emt 0:00:12]} Qa5 {[%emt 0:00:08]} 4. d4 {[%emt 0:00:41]} c6 {[%emt 0:00:33]} 5. Bd2 {[%emt 0:01:27]} Bf5 {[%emt 0:03:39]} 6. Bc4 {[%emt 0:06:25]} Nf6 {[%emt 0:03:27]} 7. Nf3 {[%emt 0:05:01]} Nbd7 {[%emt 0:05:37]} 8. Qe2 {[%emt 0:00:56]} Qc7 {[%emt 0:10:40]} 9. d5 {[%emt 0:14:07]} Bg4 {[%emt 0:15:28]} 10. O-O-O {[%emt 0:13:48]} Nb6 {[%emt 0:19:38]} 11. Bg5 {[%emt 0:15:51]} Bxf3 {[%emt 0:04:46]} 12. gxf3 {[%emt 0:00:40]} Nfxd5 {[%emt 0:06:38]} 13. Nxd5 {[%emt 0:02:38]} Nxd5 {[%emt 0:01:47]} 14. Bxd5 {[%emt 0:01:30]} cxd5 {[%emt 0:00:08]} 15. Rxd5 {[%emt 0:01:44]} f6 {[%emt 0:01:59]} 16. Be3 {[%emt 0:03:47]} e6 {[%emt 0:04:17]} 17. Rd3 {[%emt 0:03:24]} Bd6 {[%emt 0:04:05]} 18. Rc3 {[%emt 0:02:20]} Qe7 {[%emt 0:02:21]} 19. Rd1 {[%emt 0:01:36]} O-O {[%emt 0:01:20]} 20. h4 {[%emt 0:02:01]} b6 {[%emt 0:01:50]} 21. Rg1 {[%emt 0:01:52]} g6 {[%emt 0:01:57]} 22. h5 {[%emt 0:01:27]} g5 {[%emt 0:01:16]} 23. f4 {[%emt 0:00:49]} h6 {[%emt 0:01:15]} 24. fxg5 {[%emt 0:01:11]} fxg5 {[%emt 0:00:15]} 25. Qd3 {[%emt 0:01:20]} Bf4 {[%emt 0:03:23]} 26. Qg6+ {[%emt 0:02:07]} Qg7 {[%emt 0:00:15]} 27. Qxe6+ {[%emt 0:00:23]} Kh8 {[%emt 0:01:00]} 28. Rc6 {[%emt 0:02:09]} Bxe3+ {[%emt 0:02:23]} 29. fxe3 {[%emt 0:00:52]} Kh7 {[%emt 0:00:32]} 30. Qe4+ {[%emt 0:00:58]} Kh8 {[%emt 0:00:40]} 31. Rg6 {[%emt 0:01:06]} Rae8 {[%emt 0:01:14]} 32. Qc6 {[%emt 0:03:31]} Rc8 {[%emt 0:01:35]} 33. Rxh6+ {[%emt 0:00:29]} Kg8 {[%emt 0:00:11]} 34. Qe6+ {[%emt 0:00:16]} 1-0